bitfinex/quotes_BTCUSD_20240918
["timestamp","ask_amount","ask_price","bid_price","bid_amount"]
[1726684734195,0.16305367,61050.0,61037.0,0.03]
[1726684734414,0.33163321,61062.0,61030.0,0.57338111]
[1726684734415,0.16305367,61043.0,61032.0,0.06]
[1726684734628,0.16305367,61048.0,61040.0,0.223826]
[1726684734841,0.98284928,61041.0,61037.0,0.06]
[1726684735087,0.16305367,61048.0,61040.0,0.03]
[1726684735330,0.98284928,61040.0,61029.0,0.06]
[1726684735538,0.98284928,61040.0,61008.0,0.327821]
[1726684735539,0.023,61043.0,61030.0,0.98284928]
[1726684735748,0.16305367,61033.0,61027.0,0.00062969]
[1726684735956,0.16305367,61029.0,61019.0,0.98284928]
[1726684736390,0.16305367,61029.0,61020.0,0.163879]
[1726684736621,0.16305367,61026.0,61018.0,0.327767]
[1726684736847,0.16305367,61026.0,61025.0,0.16449669]
[1726684737269,0.16305367,61026.0,61025.0,0.49223069]
[1726684737471,0.24579889,61032.0,61031.0,0.491553]
[1726684737735,0.24579889,61047.0,61035.0,0.06]
[1726684737974,0.24579889,61047.0,61028.0,0.00062969]
[1726684737975,0.16305367,61046.0,61042.0,0.00062969]
[1726684738220,0.16305367,61046.0,61031.0,0.44017552]
[1726684738221,0.16305367,61046.0,61036.0,0.00062969]
[1726684738433,0.00409534,61045.0,61036.0,0.00062969]
[1726684738649,0.16305367,61046.0,61042.0,0.16382]
[1726684738854,0.16305367,61046.0,61039.0,0.06]
[1726684738855,0.16305367,61046.0,61045.0,0.00062969]
[1726684739289,0.16305367,61046.0,61045.0,0.16444269]
[1726684739494,0.16305367,61046.0,61045.0,0.87969669]
[1726684739703,0.16305367,61046.0,61045.0,0.55206969]
[1726684739912,0.16305367,61046.0,61045.0,0.87969669]
[1726684740120,0.16305367,61046.0,61044.0,0.00062969]
[1726684740327,0.16305367,61045.0,61036.0,0.00062969]
[1726684740550,0.0540955,61050.0,61036.0,0.00062969]
[1726684740551,0.16305367,61043.0,61036.0,0.00062969]
[1726684740774,0.16305367,61043.0,61038.0,0.00062969]
[1726684740999,0.16305367,61043.0,61040.0,0.24579889]
[1726684741198,0.05409572,61050.0,61044.0,0.06]
[1726684741199,0.05,61050.0,61044.0,0.06]
[1726684741411,0.05,61050.0,61049.0,0.55203669]
[1726684741662,0.0498,61050.0,61049.0,1.30724669]
[1726684741872,0.24579889,61081.0,61066.0,0.06]
[1726684742083,0.24579889,61081.0,61067.0,0.878772]
[1726684742338,0.24579889,61081.0,61073.0,0.06]
[1726684742553,0.16305367,61080.0,61079.0,0.59179569]
[1726684742831,0.24579889,61087.0,61079.0,0.44017552]
[1726684743058,0.24579889,61087.0,61074.0,0.1]
[1726684743268,0.00409311,61093.0,61075.0,0.40953089]
[1726684743478,0.000721,61109.0,61081.0,0.03]
[1726684743689,0.000721,61109.0,61074.0,0.54017552]
[1726684743690,0.327332,61100.0,61079.0,0.1]
[1726684743903,0.327332,61100.0,61054.0,0.327575]
[1726684743904,0.327361,61095.0,61071.0,0.06]
[1726684744119,0.327372,61093.0,61068.0,0.06062969]
[1726684744330,0.327407,61086.0,61064.0,0.00062969]
[1726684744539,0.163718,61081.0,61064.0,0.00062969]
[1726684744781,0.163718,61081.0,61063.0,0.1]
[1726684744782,0.00409381,61080.0,61057.0,0.06062969]
[1726684744994,0.32751,61067.0,61059.0,0.98213336]
[1726684745204,0.32751,61067.0,61052.0,0.98213336]
[1726684745205,0.023,61066.0,61064.0,0.98213336]
[1726684745414,0.023,61063.0,61052.0,0.98213336]
[1726684745620,0.023,61061.0,61052.0,0.98213336]
[1726684745826,0.023,61063.0,61042.0,0.98213336]
[1726684745827,0.00409506,61062.0,61053.0,0.98213336]
[1726684746046,0.16305367,61054.0,61042.0,0.98213336]
[1726684746260,0.16305367,61052.0,61051.0,0.98213336]
[1726684746476,0.16305367,61052.0,61036.0,0.06]
[1726684746682,0.00409502,61059.0,61029.0,0.98213336]
[1726684746683,0.023,61051.0,61044.0,0.98213336]
[1726684746892,0.98213336,61061.0,61044.0,0.98213336]
[1726684746893,0.023,61055.0,61044.0,0.98213336]
[1726684747116,0.44017552,61085.0,61051.0,0.98213336]
[1726684747346,0.44017552,61085.0,61048.0,0.00062969]
[1726684747347,0.98213336,61066.0,61056.0,0.06]
[1726684747561,0.000822,61063.0,61056.0,0.223782]
[1726684747772,0.000822,61063.0,61056.0,0.06062969]
[1726684747999,0.000822,61063.0,61053.0,0.1]
[1726684748000,0.16305367,61060.0,61053.0,0.1]
[1726684748655,0.16305367,61054.0,61049.0,0.001644]
[1726684748851,0.004917,61063.0,61049.0,0.001644]
[1726684748852,0.16305367,61052.0,61049.0,0.001644]
[1726684749087,0.16305367,61050.0,61049.0,0.001644]
[1726684749300,0.08169986,61124.0,61062.0,0.98213336]
[1726684749516,0.03,61116.0,61099.0,0.03]
[1726684749732,0.03,61116.0,61064.0,0.03]
[1726684749733,0.00245551,61108.0,61088.0,0.44017552]
[1726684749958,0.327234,61119.0,61090.0,0.03]
[1726684750187,0.03,61133.0,61097.0,0.06]
[1726684750439,0.327994,61130.0,61098.0,0.06]
[1726684750652,0.328039,61122.0,61097.0,0.03]
[1726684750865,0.328039,61122.0,61089.0,0.1]
[1726684750866,0.000822,61122.0,61101.0,0.03]
[1726684751086,0.000822,61122.0,61108.0,0.03]
[1726684751304,0.000822,61122.0,61108.0,0.550933]
[1726684751516,0.000822,61122.0,61108.0,0.223644]
[1726684751724,0.000822,61122.0,61108.0,0.878222]
[1726684752358,0.000822,61122.0,61108.0,0.978222]
[1726684752578,0.000822,61122.0,61108.0,0.650933]
[1726684752792,0.000822,61122.0,61108.0,0.13]
[1726684753065,0.000822,61122.0,61108.0,0.16]
[1726684753066,0.98213336,61119.0,61108.0,0.16]
[1726684753276,0.98213336,61119.0,61108.0,0.03]
[1726684753482,0.98213336,61119.0,61108.0,0.193644]
[1726684753703,0.000822,61112.0,61108.0,0.03]
[1726684753917,0.16377467,61109.0,61105.0,0.44017552]
[1726684754128,0.16305367,61108.0,61102.0,0.06]
[1726684754347,0.16305367,61108.0,61102.0,0.03]
[1726684754559,0.16305367,61108.0,61102.0,0.06]
[1726684754775,0.16305367,61108.0,61086.0,0.327401]
[1726684754776,0.16305367,61103.0,61092.0,0.03]
[1726684755000,0.16305367,61103.0,61088.0,0.032]
[1726684755001,0.16305367,61102.0,61093.0,0.24546503]
[1726684755216,0.16305367,61098.0,61086.0,0.03]
[1726684755428,0.16305367,61096.0,61084.0,0.06]
[1726684755646,0.16305367,61096.0,61071.0,0.327486]
[1726684755647,0.24546503,61089.0,61067.0,0.06]
[1726684755862,0.00245551,61088.0,61080.0,0.98227807]
[1726684756077,0.98227807,61087.0,61065.0,0.98227807]
[1726684756304,0.023,61082.0,61072.0,0.98227807]
[1726684756510,0.023,61090.0,61065.0,1.04227807]
[1726684756725,0.023,61090.0,61074.0,0.98227807]
[1726684756726,0.16305367,61076.0,61074.0,0.98227807]
[1726684756986,0.16305367,61076.0,61073.0,0.06]
[1726684757199,0.98227807,61093.0,61087.0,0.06]
[1726684757437,0.16305367,61092.0,61087.0,0.06]
[1726684757655,0.16305367,61092.0,61087.0,0.03]
[1726684757869,0.16550918,61092.0,61083.0,0.032]
[1726684758078,0.16305367,61088.0,61077.0,0.002]
[1726684758303,0.16305367,61082.0,61071.0,0.06]
[1726684758517,0.32678767,61075.0,61063.0,0.06]
[1726684758735,0.00245551,61074.0,61057.0,0.06]
[1726684758952,0.163749,61069.0,61052.0,1.04227807]
[1726684759169,0.00245551,61068.0,61056.0,0.06]
[1726684759378,0.16305367,61066.0,61054.0,0.06]
[1726684759806,0.16305367,61066.0,61055.0,0.002]
[1726684760014,0.16305367,61066.0,61052.0,0.06]
[1726684760225,0.16305367,61066.0,61054.0,0.062]
[1726684760458,0.16305367,61066.0,61062.0,1.01227807]
[1726684760694,0.98227807,61078.0,61077.0,0.002]
[1726684760939,1.14533174,61078.0,61077.0,0.002]
[1726684761155,0.16305367,61078.0,61077.0,0.225727]
[1726684761388,0.16305367,61078.0,61077.0,0.553182]
[1726684761591,0.000821,61100.0,61086.0,0.03]
[1726684761796,0.000821,61100.0,61086.0,0.06]
[1726684762211,0.000821,61100.0,61082.0,0.1]
[1726684762212,0.000821,61100.0,61092.0,0.03]
[1726684762423,0.98227807,61098.0,61095.0,0.06]
[1726684762641,0.000821,61100.0,61099.0,0.553005]
[1726684762849,0.000821,61100.0,61099.0,1.307679]
[1726684763492,0.000821,61100.0,61099.0,2.14606967]
[1726684763708,0.000721,61109.0,61108.0,1.42039752]
[1726684763923,0.000721,61109.0,61108.0,1.74768652]
[1726684764343,0.000721,61109.0,61108.0,2.07497552]
[1726684764590,0.000721,61109.0,61108.0,7.12497552]
[1726684764810,0.24632319,61112.0,61110.0,0.980195]
[1726684765023,0.24632319,61112.0,61110.0,0.162]
[1726684765268,0.25050119,61111.0,61110.0,0.16]
[1726684765476,0.16805367,61111.0,61109.0,0.03]
[1726684765683,0.16805367,61111.0,61107.0,0.06]
[1726684765684,0.16305367,61110.0,61107.0,0.06]
[1726684765922,0.16305367,61110.0,61099.0,0.327334]
[1726684765923,0.16305367,61108.0,61096.0,0.30550119]
[1726684766133,0.16305367,61106.0,61096.0,0.24550119]
[1726684766341,0.16305367,61105.0,61096.0,0.24550119]
[1726684766772,0.16305367,61099.0,61088.0,0.06]
[1726684766980,0.24550119,61102.0,61089.0,0.98210121]
[1726684766981,0.16550918,61098.0,61089.0,0.98210121]
[1726684767199,0.16305367,61098.0,61089.0,0.98210121]
[1726684767406,0.98455672,61097.0,61080.0,0.98210121]
[1726684767630,0.98292321,61137.0,61099.0,0.327333]
[1726684767852,0.98292321,61137.0,61110.0,0.550917]
[1726684767853,0.98210121,61123.0,61110.0,0.550917]
[1726684768073,0.98210121,61123.0,61110.0,0.062]
[1726684768290,0.98210121,61123.0,61110.0,0.27595863]
[1726684768565,0.98210121,61123.0,61110.0,0.062]
[1726684769009,0.98210121,61123.0,61110.0,0.162]
[1726684769232,0.98210121,61123.0,61110.0,0.1652723]
[1726684769460,0.98210121,61123.0,61110.0,0.16]
[1726684769684,0.98210121,61123.0,61110.0,0.06]
[1726684769900,0.105,61111.0,61110.0,0.06]
[1726684770315,0.105,61111.0,61110.0,0.03]
[1726684770740,0.26805367,61111.0,61092.0,0.03]
[1726684770956,0.16305367,61099.0,61098.0,0.245457]
[1726684771167,0.16305367,61099.0,61091.0,0.98192441]
[1726684771382,0.16305367,61099.0,61097.0,0.06]
[1726684772712,0.98192441,61106.0,61102.0,0.03]
[1726684773000,0.16305367,61105.0,61102.0,0.06]
[1726684773248,0.16305367,61105.0,61104.0,0.03]
[1726684773499,0.16305367,61105.0,61089.0,0.327387]
[1726684773500,0.16305367,61105.0,61094.0,0.03]
[1726684773741,0.105,61111.0,61098.0,0.03]
[1726684773742,0.16305367,61104.0,61098.0,0.03]
[1726684773981,0.000821,61100.0,61091.0,0.06]
[1726684774250,0.000821,61100.0,61094.0,0.3054811]
[1726684774500,0.000821,61100.0,61094.0,0.06]
[1726684774968,0.000821,61100.0,61094.0,0.03]
[1726684774969,0.16305367,61099.0,61094.0,0.03]
[1726684775175,0.0020006,61100.0,61099.0,0.03]
[1726684775376,0.16505427,61100.0,61099.0,0.03]
[1726684775626,0.16505427,61100.0,61098.0,0.03]
[1726684775856,0.16505427,61100.0,61099.0,0.03]
[1726684776072,0.16505427,61100.0,61097.0,0.06]
[1726684776294,0.16305367,61099.0,61097.0,0.06]
[1726684776504,0.0020006,61100.0,61099.0,0.06]
[1726684776744,0.0020006,61100.0,61099.0,0.551005]
[1726684776978,0.105,61111.0,61110.0,0.163639]
[1726684777207,0.105,61111.0,61110.0,0.650917]
[1726684777418,0.105,61111.0,61110.0,0.16]
[1726684778126,0.105,61111.0,61109.0,0.06]
[1726684778341,0.105,61111.0,61099.0,0.263666]
[1726684778342,0.105,61111.0,61110.0,0.06]
[1726684778794,0.105,61111.0,61107.0,0.06]
[1726684779019,0.16305367,61110.0,61106.0,0.06]
[1726684779435,0.16305367,61110.0,61101.0,0.06]
[1726684779644,0.16305367,61110.0,61098.0,0.1]
[1726684779645,0.16305367,61110.0,61106.0,0.03]
[1726684779851,0.16305367,61110.0,61103.0,0.06]
[1726684780265,0.16305367,61107.0,61091.0,0.06]
[1726684780475,0.16550918,61106.0,61100.0,0.98198065]
[1726684780712,0.16550918,61106.0,61093.0,0.98198065]
[1726684780713,0.16305367,61106.0,61093.0,0.98198065]
[1726684780939,0.98443616,61105.0,61087.0,0.98198065]
[1726684781150,0.16305367,61106.0,61094.0,1.01198065]
[1726684781368,0.98198065,61104.0,61094.0,0.03]
[1726684781575,0.105,61111.0,61103.0,0.06]
[1726684781788,1.08698065,61111.0,61103.0,0.06]
[1726684782006,1.08698065,61111.0,61097.0,0.327345]
[1726684782007,1.08698065,61111.0,61105.0,0.06]
[1726684782220,0.00245551,61110.0,61101.0,0.03]
[1726684782433,1.08698065,61111.0,61100.0,0.06]
[1726684782637,0.16305367,61109.0,61100.0,0.06]
[1726684782854,0.16305367,61109.0,61096.0,0.1]
[1726684782855,0.163653,61105.0,61096.0,0.1]
[1726684783068,0.105,61111.0,61097.0,0.98198065]
[1726684783069,0.16305367,61100.0,61097.0,0.98198065]
[1726684783298,0.105,61111.0,61084.0,0.03]
[1726684783299,0.163674,61097.0,61084.0,0.03]
[1726684783566,0.16305367,61099.0,61088.0,0.06]
[1726684783774,1.08698065,61111.0,61072.0,0.327478]
[1726684783775,1.14503432,61096.0,61081.0,0.061642]
[1726684783989,0.163686,61093.0,61083.0,1.04198065]
[1726684784201,0.327325,61102.0,61081.0,0.001642]
[1726684784202,1.14503432,61088.0,61081.0,0.001642]
[1726684784408,0.163701,61087.0,61081.0,0.001642]
[1726684784624,0.98198065,61096.0,61081.0,0.001642]
[1726684784625,0.163665,61101.0,61088.0,0.06]
[1726684784909,0.98198065,61095.0,61088.0,0.06]
[1726684785113,0.16305367,61094.0,61088.0,0.06]
[1726684785342,0.16305367,61094.0,61093.0,0.03]
[1726684785811,0.16305367,61094.0,61085.0,0.06]
[1726684786057,0.16305367,61094.0,61088.0,0.06]
[1726684786919,0.16305367,61093.0,61082.0,0.06]
[1726684787146,0.16305367,61093.0,61084.0,0.98198065]
[1726684787360,0.16305367,61093.0,61088.0,0.001642]
[1726684787620,0.16305367,61091.0,61088.0,0.001642]
[1726684788284,0.32674867,61089.0,61088.0,0.001642]
[1726684788511,0.16305367,61089.0,61088.0,0.001642]
[1726684790610,0.5736504,61109.0,61091.0,0.06]
[1726684790822,0.2455454,61095.0,61091.0,0.06]
[1726684791026,0.16305367,61094.0,61091.0,0.03]
[1726684791234,0.16305367,61094.0,61088.0,0.001642]
[1726684791696,0.16305367,61090.0,61088.0,0.001642]
[1726684794119,0.000821,61109.0,61093.0,0.06]
[1726684794318,0.24554339,61097.0,61093.0,0.06]
[1726684794544,0.16305367,61096.0,61088.0,0.001642]
[1726684794883,0.00245551,61095.0,61088.0,0.061642]
[1726684795121,0.16305367,61093.0,61088.0,0.001642]
[1726684795333,0.65413967,61089.0,61088.0,0.001642]
[1726684795750,0.98153067,61089.0,61088.0,0.001642]
[1726684795979,1.33192167,61089.0,61088.0,0.001642]
[1726684796396,1.58518361,61082.0,61081.0,0.001642]
[1726684796605,1.58518361,61082.0,61057.0,0.002]
[1726684796606,0.327519,61066.0,61059.0,0.98214943]
[1726684796812,0.16305367,61062.0,61059.0,0.98214943]
[1726684797284,0.16305367,61062.0,61051.0,0.06]
[1726684797489,0.163785,61056.0,61047.0,1.04214943]
[1726684797703,0.43918561,61067.0,61047.0,1.04214943]
[1726684797704,0.16305367,61055.0,61050.0,0.03]
[1726684797916,0.98214943,61054.0,61044.0,0.06]
[1726684798120,0.16305367,61050.0,61040.0,0.06]
[1726684798259,0.16305367,61050.0,61036.0,0.98214943]
[1726684798260,0.16305367,61050.0,61047.0,0.06]
[1726684798664,0.16305367,61050.0,61034.0,0.43918561]
[1726684798665,0.16305367,61050.0,61040.0,0.03]
[1726684798880,0.16305367,61050.0,61032.0,0.002]
[1726684798881,0.16305367,61050.0,61043.0,0.06]
[1726684799117,0.16305367,61047.0,61036.0,0.06]
[1726684799318,0.43918561,61038.0,61029.0,0.03]
[1726684799502,0.43918561,61038.0,61026.0,0.031642]
[1726684799503,0.819215,61034.0,61026.0,0.98379143]
[1726684799703,0.819215,61034.0,61026.0,0.001642]
[1726684799704,0.819307,61027.0,61026.0,0.001642]
[1726684799925,0.491682,61015.0,61014.0,0.001644]
[1726684800318,0.65473567,61015.0,61014.0,0.001644]
[1726684800523,1.00552367,61015.0,61014.0,0.001644]
[1726684800740,0.84251,61012.0,61011.0,0.0001]
[1726684800938,0.84271,60997.0,60991.0,0.0001]
[1726684801143,0.163963,60989.0,60988.0,0.98214943]
[1726684801355,0.163963,60989.0,60977.0,0.000644]
[1726684801356,0.49198,60978.0,60977.0,0.000644]
[1726684801568,1.44520628,60978.0,60977.0,0.000644]
[1726684801775,1.77319328,60978.0,60977.0,0.000644]
[1726684802608,0.32704667,60978.0,60977.0,0.000644]
[1726684802870,0.16305367,60978.0,60977.0,0.000644]
[1726684803097,0.16305367,60978.0,60977.0,0.10209595]
[1726684803316,0.16305367,60978.0,60977.0,0.20209595]
[1726684803521,0.16305367,60978.0,60977.0,0.162644]
[1726684803930,0.16305367,60978.0,60977.0,0.100644]
[1726684804132,0.16305367,60978.0,60977.0,0.160644]
[1726684804335,0.16305367,60978.0,60977.0,0.000644]
[1726684804948,0.00245551,60993.0,60983.0,0.03]
[1726684804949,0.24599237,60993.0,60983.0,0.03]
[1726684805156,0.40904604,60992.0,60988.0,0.002]
[1726684805360,0.40904604,60992.0,60987.0,0.06]
[1726684805361,0.16305367,60992.0,60991.0,0.032]
[1726684805578,0.24599237,61013.0,61004.0,0.06]
[1726684805579,0.24599237,61006.0,61004.0,0.06]
[1726684805799,0.16305367,61005.0,61004.0,0.06]
[1726684806019,0.16305367,61005.0,61004.0,0.223923]
[1726684806211,0.16305367,61005.0,61004.0,0.06]
[1726684806417,0.24599237,61018.0,61010.0,0.03]
[1726684806622,0.16305367,61017.0,61016.0,0.002]
[1726684806827,0.24599237,61026.0,61023.0,0.03]
[1726684807031,0.16305367,61025.0,61024.0,0.06]
[1726684807464,0.0009612,61031.0,61030.0,0.223853]
[1726684807691,0.0009612,61031.0,61030.0,0.979267]
[1726684807895,0.001646,61039.0,61036.0,0.81535]
[1726684808108,0.24599237,61045.0,61030.0,5.377707]
[1726684808109,0.24599237,61045.0,61044.0,0.323816]
[1726684808537,0.24599237,61052.0,61051.0,0.03]
[1726684808737,0.16305367,61052.0,61051.0,0.03]
[1726684809157,0.24599237,61072.0,61058.0,0.03]
[1726684809367,0.24599237,61072.0,61060.0,0.553319]
[1726684810026,0.001646,61073.0,61072.0,0.03]
[1726684810287,0.001646,61073.0,61072.0,0.223741]
[1726684810476,0.001646,61073.0,61072.0,0.978705]
[1726684810680,0.0031548,61078.0,61077.0,0.878637]
[1726684810926,0.0031548,61078.0,61077.0,0.651182]
[1726684811144,0.0031548,61078.0,61077.0,0.16]
[1726684811533,0.0031548,61078.0,61077.0,0.323727]
[1726684811794,0.0031548,61078.0,61077.0,0.06]
[1726684811987,0.24681337,61109.0,61108.0,0.650933]
[1726684812194,0.000821,61109.0,61108.0,0.978222]
[1726684812424,0.000821,61109.0,61108.0,1.43084178]
[1726684812632,0.000822,61112.0,61110.0,0.650917]
[1726684812839,0.0001,61119.0,61113.0,0.878155]
[1726684813092,0.0001,61119.0,61118.0,0.71629695]
[1726684813337,0.0001,61119.0,61118.0,1.04553195]
[1726684814390,0.0001,61119.0,61118.0,1.70000195]
[1726684814596,0.000822,61130.0,61118.0,1.70000195]
[1726684814597,0.000822,61130.0,61121.0,1.307266]
[1726684814797,0.000822,61130.0,61121.0,0.325609]
[1726684815002,0.000822,61130.0,61121.0,0.652828]
[1726684815212,0.000822,61130.0,61121.0,0.162]
[1726684815852,0.16387567,61122.0,61114.0,0.03]
[1726684816114,0.16305367,61115.0,61095.0,0.24541283]
[1726684816317,0.16305367,61115.0,61064.0,0.03]
[1726684816318,0.023,61104.0,61089.0,0.98199673]
[1726684816521,0.023,61104.0,61082.0,0.98199673]
[1726684816522,0.00245551,61103.0,61082.0,0.98199673]
[1726684816760,0.023,61102.0,61082.0,1.04199673]
[1726684816974,0.3275,61069.0,61050.0,0.002]
[1726684817185,0.023,61092.0,61070.0,0.06]
[1726684817417,0.023,61092.0,61050.0,0.002]
[1726684817418,0.00245551,61091.0,61061.0,0.03]
[1726684817632,0.023,61086.0,61059.0,0.032513]
[1726684817844,0.00245551,61085.0,61059.0,0.032513]
[1726684818088,0.00245551,61085.0,61059.0,0.002513]
[1726684818089,0.023,61075.0,61059.0,0.002513]
[1726684818314,0.023,61084.0,61059.0,0.002513]
[1726684818315,0.00245551,61074.0,61062.0,0.03]
[1726684819061,0.00245551,61074.0,61059.0,0.002513]
[1726684819062,0.32491951,61076.0,61059.0,0.062513]
[1726684819296,0.327435,61081.0,61059.0,0.062513]
[1726684819531,1.67105396,61181.0,61067.0,0.06]
[1726684819532,0.16305367,61068.0,61067.0,0.06]
[1726684819767,0.16305367,61068.0,61067.0,0.062]
[1726684820046,0.15805367,61068.0,61061.0,0.002]
[1726684820287,0.15805367,61068.0,61062.0,0.06]
[1726684820733,0.163773,61060.0,61059.0,0.002513]
[1726684820963,0.15805367,61060.0,61039.0,0.06]
[1726684821160,0.98199673,61069.0,61024.0,0.0031548]
[1726684821161,0.16305367,61040.0,61024.0,0.0031548]
[1726684821367,0.16305367,61040.0,61020.0,0.01019708]
[1726684821368,0.327734,61025.0,61020.0,0.01019708]
[1726684821577,0.84239,61021.0,61020.0,0.01019708]
[1726684821785,0.84239,61021.0,60991.0,0.0001]
[1726684821786,0.03,61009.0,60991.0,0.0301]
[1726684821993,0.316923,61004.0,61003.0,0.98199673]
[1726684822202,0.1,61011.0,60991.0,0.0001]
[1726684822203,0.186955,60992.0,60991.0,0.0001]
[1726684822418,0.972777,60992.0,60991.0,0.0001]
[1726684822630,0.023,60985.0,60956.0,0.06]
[1726684822872,0.023,60985.0,60961.0,0.002]
[1726684823076,0.023,60985.0,60959.0,0.03]
[1726684823322,0.164021,60968.0,60963.0,0.002]
[1726684823531,0.03,60985.0,60955.0,0.032]
[1726684823740,0.023,60981.0,60977.0,0.001648]
[1726684823963,0.842967,60978.0,60977.0,0.001648]
[1726684824174,1.147954,60978.0,60977.0,0.001648]
[1726684824395,0.819967,60978.0,60977.0,0.001648]
[1726684824603,0.18970742,60981.0,60977.0,0.001648]
[1726684824811,0.163993,60978.0,60977.0,0.001648]
[1726684825017,0.842967,60978.0,60977.0,0.001648]
[1726684825240,0.819967,60978.0,60977.0,0.001648]
[1726684825454,0.000824,60992.0,60977.0,0.001648]
[1726684825712,1.6370304,60978.0,60977.0,0.001648]
[1726684825936,0.16305367,60978.0,60977.0,0.001648]
[1726684826617,0.32704667,60978.0,60977.0,0.001648]
[1726684826855,0.000824,60992.0,60991.0,0.06]
[1726684827053,0.000824,60992.0,60977.0,0.94363151]
[1726684827054,0.24599237,61000.0,60999.0,0.06]
[1726684827479,0.24599237,61007.0,61006.0,0.002]
[1726684827752,0.24599237,61007.0,61006.0,0.062]
[1726684827974,0.24599237,61014.0,61013.0,0.03]
[1726684828187,0.40904604,61014.0,60996.0,0.0086875]
[1726684828395,0.163906,61011.0,61006.0,0.24599237]
[1726684828596,0.163906,61011.0,60994.0,0.24599237]
[1726684828597,0.24599237,61020.0,61001.0,0.0086875]
[1726684828797,0.163905,61011.0,61002.0,0.24599237]
[1726684828945,0.03,61022.0,61003.0,0.99218926]
[1726684829145,0.16305367,61013.0,61009.0,0.002]
[1726684829352,0.16305367,61013.0,61010.0,0.98350176]
[1726684829583,0.16305367,61013.0,61009.0,0.002]
[1726684829789,0.163905,61011.0,61001.0,0.0106875]
[1726684829936,0.16305367,61010.0,61003.0,0.98350176]
[1726684830140,1.31123376,61026.0,60989.0,0.327927]
[1726684830141,1.14655543,61004.0,60989.0,0.03]
[1726684830347,0.0213125,61014.0,60990.0,0.98350176]
[1726684830551,1.80303876,61010.0,61009.0,0.004]
[1726684830854,0.163954,60993.0,60985.0,0.0086875]
[1726684831053,0.16305367,60992.0,60991.0,0.98350176]
[1726684831285,0.16305367,60992.0,60991.0,1.02218926]
[1726684831538,0.98350176,61014.0,60991.0,1.02218926]
[1726684831539,0.98350176,61014.0,61007.0,0.0386875]
[1726684831725,0.98350176,61014.0,61013.0,0.0086875]
[1726684831927,0.03,61039.0,61016.0,0.0086875]
[1726684832082,0.98350176,61017.0,61016.0,0.0086875]
[1726684832279,0.98350176,61017.0,61007.0,0.1]
[1726684832280,0.03,61055.0,61025.0,0.0086875]
[1726684832488,0.98350176,61036.0,61032.0,0.0086875]
[1726684832695,0.16305367,61035.0,61034.0,0.0086875]
[1726684832937,0.98350176,61045.0,61042.0,0.0086875]
[1726684833259,0.16305367,61044.0,61042.0,0.0086875]
[1726684833659,0.012,61046.0,61043.0,0.0086875]
[1726684833866,0.03,61074.0,61052.0,0.3024815]
[1726684834084,0.0112445,61078.0,61064.0,0.491287]
[1726684834085,0.98350176,61065.0,61064.0,0.491287]
[1726684834315,0.98350176,61065.0,61064.0,0.0106875]
[1726684834533,0.98350176,61065.0,61064.0,0.0406875]
[1726684834766,0.98350176,61065.0,61057.0,0.0086875]
[1726684834767,0.16305367,61065.0,61057.0,0.0086875]
[1726684835006,0.16305367,61065.0,61064.0,0.0106875]
[1726684835519,0.16305367,61065.0,61054.0,0.0086875]
[1726684835777,0.16305367,61062.0,61059.0,0.2456419]
[1726684835986,0.16305367,61060.0,61051.0,0.002]
[1726684836208,0.16305367,61058.0,61057.0,0.0086875]
[1726684836454,0.2456419,61075.0,61066.0,0.0086875]
[1726684836688,0.2456419,61075.0,61069.0,0.0086875]
[1726684836689,0.16305367,61074.0,61069.0,0.0086875]
[1726684836943,0.16305367,61074.0,61073.0,0.0386875]
[1726684837187,0.16305367,61074.0,61073.0,0.2024255]
[1726684837421,0.0112445,61078.0,61064.0,0.1]
[1726684837422,0.0112445,61078.0,61077.0,0.0386875]
[1726684837634,0.0112445,61078.0,61077.0,1.2544145]
[1726684837836,0.001644,61084.0,61083.0,0.5298215]
[1726684838059,0.001644,61084.0,61083.0,0.8572445]
[1726684838261,0.001644,61084.0,61083.0,0.2023985]
[1726684838467,0.001644,61084.0,61083.0,0.5298215]
[1726684838674,0.0001,61099.0,61094.0,0.0086875]
[1726684838879,0.40869557,61095.0,61094.0,0.0086875]
[1726684839080,0.16305367,61095.0,61094.0,0.0086875]
[1726684839281,0.16305367,61095.0,61094.0,0.01566447]
[1726684839519,0.16305367,61095.0,61094.0,0.00697697]
[1726684839717,0.98145067,61095.0,61094.0,0.00697697]
[1726684839917,0.023,61094.0,61079.0,0.2456419]
[1726684840120,0.023,61094.0,61072.0,0.2456419]
[1726684840121,0.03,61087.0,61072.0,0.2456419]
[1726684840340,1.23459398,61081.0,61080.0,0.00697697]
[1726684840545,0.023,61080.0,61058.0,0.0086875]
[1726684840795,0.023,61080.0,61057.0,0.0086875]
[1726684840999,0.023,61080.0,61062.0,0.0386875]
[1726684841203,0.39300898,61097.0,61075.0,0.0086875]
[1726684841409,0.39300898,61088.0,61062.0,0.03]
[1726684841612,0.0213125,61087.0,61059.0,0.0386875]
[1726684841817,1.39300898,61080.0,61058.0,0.03]
[1726684842052,0.327567,61057.0,61047.0,0.0386875]
[1726684842261,0.163802,61050.0,61042.0,0.000822]
[1726684842465,0.163802,61049.0,61048.0,0.00539296]
[1726684842680,0.39300898,61052.0,61042.0,0.000822]
[1726684842894,0.163818,61043.0,61042.0,0.000822]
[1726684843128,0.16305367,61043.0,61042.0,0.0095095]
[1726684843334,0.16305367,61043.0,61042.0,0.000822]
[1726684843545,0.16305367,61043.0,61042.0,0.00621496]
[1726684843751,0.16305367,61043.0,61042.0,0.000822]
[1726684843963,0.98232631,61061.0,61047.0,0.0086875]
[1726684844169,0.98232631,61053.0,61047.0,0.0086875]
[1726684844396,0.16305367,61052.0,61051.0,0.0086875]
[1726684844650,0.16305367,61052.0,61042.0,0.000822]
[1726684844868,0.65450867,61043.0,61042.0,0.000822]
[1726684845284,0.16305367,61043.0,61042.0,0.000822]